fUSD/lending_fUSD_20240113
["ID","MTS","AMOUNT","RATE_DAILY","PERIOD"]
[311521632,1705177832134,-173.49977986,0.000224,2]
[311521633,1705177832143,-406.09767014,0.00022414,2]
[311521634,1705177832155,-897.53156654,0.00022414,2]
[311521635,1705177832165,-726.07,0.00022427,2]
[311521636,1705177832174,-151.27,0.00022454,2]
[311521637,1705177832183,-0.17213111,0.00022491,2]
[311521656,1705177832495,-588.94638895,0.00022491,2]
[311521659,1705177832511,-134.32147994,0.00022491,2]
[311521661,1705177832521,-297.14339491,0.000225,2]
[311521663,1705177832536,-600.1261207,0.000225,2]
[311521673,1705177832613,-900.0,0.000225,2]
[311521675,1705177832625,-17313.01684613,0.000225,2]
[311521677,1705177832635,-1303.62923668,0.0002254,2]
[311521679,1705177832645,-1288.53657582,0.00022551,2]
[311521681,1705177832655,-151.27,0.0002256,2]
[311521683,1705177832665,-725.24,0.0002257,2]
[311521685,1705177832675,-151.27,0.00022666,2]
[311521687,1705177832684,-733.78,0.00022668,2]
[311521689,1705177832693,-150.0,0.00022692,2]
[311521691,1705177832703,-151.27,0.00022771,2]
[311521719,1705177832973,-644.28,0.00022789,2]
[311521720,1705177832985,-726.0,0.00022792,2]
[311521721,1705177832995,-16435.2285,0.00022798,2]
[311521722,1705177833005,-721.57,0.00022818,2]
[311521723,1705177833015,-7415.577,0.00022828,2]
[311521724,1705177833025,-734.51,0.00022828,2]
[311521725,1705177833034,-730.2,0.00022842,2]
[311521726,1705177833043,-730.31,0.00022864,2]
[311521727,1705177833052,-151.27,0.00022877,2]
[311521729,1705177833063,-717.16,0.00022898,2]
[311521730,1705177833076,-5909.50629778,0.00022898,2]
[311521732,1705177833086,-294.6467,0.00022898,2]
[311521733,1705177833096,-500.0,0.00022898,2]
[311521734,1705177833106,-357.29908342,0.00022898,2]
[311521735,1705177833116,-385.84879499,0.00022898,2]
[311521736,1705177833127,-311.75837735,0.00022898,2]
[311521737,1705177833137,-528.68959497,0.00022898,2]
[311521738,1705177833148,-16746.77665301,0.00022898,2]
[311521739,1705177833163,-288.58780713,0.00022898,2]
[311521740,1705177833174,-155.4436831,0.00022898,2]
[311521741,1705177833183,-500.89319127,0.00022898,2]
[311521742,1705177833194,-163.7690261,0.00022898,2]
[311521743,1705177833204,-765.80999369,0.00022898,2]
[311521744,1705177833217,-207.56937403,0.00022898,2]
[311521745,1705177833228,-318.31330327,0.00022898,2]
[311521746,1705177833240,-381.62046734,0.00022898,2]
[311521747,1705177833252,-337.55596283,0.00022898,2]
[311521748,1705177833262,-363.35937051,0.00022898,2]
[311521749,1705177833274,-727.86,0.00022898,2]
[311521750,1705177833284,-4851.31096987,0.00022899,2]
[311521751,1705177833295,-12300.02280859,0.000229,2]
[311521752,1705177833305,-155.606449,0.000229,2]
[311521753,1705177833318,-192.30652944,0.000229,2]
[311521754,1705177833327,-724.0,0.00022942,2]
[311521755,1705177833338,-151.27,0.00022983,2]
[311521756,1705177833350,-737.36,0.00022996,2]
[311521757,1705177833361,-23385.08900854,0.00022997,2]
[311521758,1705177833373,-155.0,0.00022998,2]
[311521759,1705177833384,-3415.51488884,0.00022998,2]
[311521760,1705177833396,-206.395283,0.00022998,2]
[311521761,1705177833407,-515.16321608,0.00022998,2]
[311521762,1705177833420,-125048.25446103,0.00022998,2]
[311521763,1705177833429,-363.56577485,0.00022998,2]
[311521764,1705177833439,-30287.93192596,0.00022998,2]
[311521765,1705177833453,-2887.94746135,0.00022998,2]
[311521766,1705177833587,-431.907,0.00022998,2]
[311521767,1705177835114,151.27,0.00021918,2]
[311521768,1705177838014,-151.27,0.00022204,2]
[311521769,1705177838024,-151.27,0.00022489,2]
[311521770,1705177838033,-151.27,0.00022775,2]
[311521771,1705177838042,-40334.87465953,0.00022998,2]
[311521772,1705177838122,-1001.41737966,0.00022998,2]
[311521773,1705177838135,-2133.84852383,0.00022998,2]
[311521774,1705177838147,-1172.8,0.00022998,2]
[311521775,1705177838158,-283.46060076,0.00022998,2]
[311521776,1705177838169,-716.53939924,0.00022998,2]
[311521777,1705177838212,-1674.336663,0.00022998,2]
[311521778,1705177838339,-559.28171963,0.00022998,2]
[311521779,1705177840640,-568.37329392,0.00022536,2]
[311521780,1705177840652,-393.67099079,0.00022536,2]
[311521781,1705177840665,-341.58495198,0.00022536,2]
[311521782,1705177840677,-14.13929928,0.00022998,2]
[311521783,1705177841293,-1288.53657582,0.00022658,2]
[311521784,1705177841303,-11950.07943965,0.00022998,2]
[311521785,1705177841313,-717.14,0.00022998,2]
[311521786,1705177841322,-153.0,0.00022998,2]
[311521787,1705177841332,-951.26132272,0.00022999,2]
[311521788,1705177841341,-2437.72472011,0.00022999,2]
[311521789,1705177841351,-7144.71044358,0.00022999,2]
[311521790,1705177841360,-205.54450642,0.00022999,2]
[311521791,1705177841370,-735.19,0.00023,2]
[311521792,1705177841379,-29853.55361631,0.00023,2]
[311521798,1705177842889,-1618.911,0.00023,2]
[311521799,1705177842946,-18095.5844675,0.00023,2]
[311521800,1705177843007,-2849.56032582,0.00023,2]
[311521801,1705177843019,-3007.59550457,0.00023,2]
[311521802,1705177843071,-2860.43808436,0.00023,2]
[311521804,1705177843233,-90190.65973473,0.00023,2]
[311521810,1705177846045,-4980.0,0.00023,2]
[311521811,1705177846314,-21127.42127105,0.00023,2]
[311521812,1705177881097,219.90355198,0.00022,2]
[311521813,1705177896507,300.1034,0.00022073,2]
[311521814,1705177899826,400.0,0.000226,8]
[311521815,1705177901917,800.0,0.000227,8]
[311521816,1705177904016,1200.0,0.000228,8]
[311521817,1705177906097,1700.0,0.000229,8]
[311521819,1705178070094,324.95,0.00020369,2]
[311521820,1705178088226,1250.0,0.00022,3]
[311521821,1705178113341,348.48,0.00022075,2]
[311521822,1705178256749,151.27,0.00022005,2]
[311521824,1705178270527,1575.79,0.00021841,2]
[311521832,1705178560150,558.37,0.0002184,2]
[311521834,1705178585529,721.21,0.00021838,2]
[311521839,1705178620653,308.7,0.00019924,2]
[311521841,1705178900466,100000.0,0.00031,120]
[311521842,1705178984910,521.14,0.00021846,2]
[311521843,1705179004421,206.0,0.00022004,2]
[311521844,1705179014320,36822.5425806,0.00031,120]
[311521853,1705179032329,423.03,0.00021844,2]
[311521854,1705179032737,-1044.42274817,0.00022187,2]
[311521855,1705179032749,-308.7,0.00022188,2]
[311521856,1705179032759,-468.33621346,0.0002234,2]
[311521857,1705179032769,-978.53103837,0.00022442,2]
[311521858,1705179032781,-45.94447345,0.00022442,2]
[311521859,1705179032790,-156.70994604,0.00022625,2]
[311521860,1705179032799,-150.0,0.00022685,2]
[311521861,1705179032809,-150.0,0.00022725,2]
[311521862,1705179032818,-150.99,0.00022726,2]
[311521863,1705179032827,-237.24,0.00022726,2]
[311521864,1705179032836,-2768.43,0.00022726,2]
[311521865,1705179032845,-150.0,0.00022726,2]
[311521866,1705179032854,-499.99,0.00022728,2]
[311521867,1705179032864,-150.0,0.00022728,2]
[311521868,1705179032873,-150.0,0.00022728,2]
[311521869,1705179032882,-150.0,0.00022729,2]
[311521870,1705179032891,-999.99,0.00022729,2]
[311521871,1705179032901,-150.99,0.00022729,2]
[311521872,1705179032910,-150.0,0.0002273,2]
[311521873,1705179032919,-608.23882138,0.0002273,2]
[311521874,1705179032931,-891.76117862,0.0002273,2]
[311521875,1705179032940,-150.0,0.00022731,2]
[311521876,1705179032949,-150.0,0.00022738,2]
[311521877,1705179032958,-149.77828396,0.00022738,2]
[311521878,1705179032970,-0.22171604,0.00022738,2]
[311521879,1705179032979,-298.16792025,0.00022738,2]
[311521880,1705179032991,-1.83207975,0.00022738,2]
[311521881,1705179033000,-150.0,0.00022738,2]
[311521882,1705179033010,-150.0,0.00022744,2]
[311521883,1705179033019,-150.0,0.00022746,2]
[311521884,1705179033028,-150.0,0.00022747,2]
[311521885,1705179033037,-150.0,0.00022749,2]
[311521886,1705179033047,-150.0,0.00022749,2]
[311521887,1705179033056,-150.0,0.00022749,2]
[311521888,1705179033065,-300.0,0.0002275,2]
[311521889,1705179033074,-150.0,0.0002275,2]
[311521890,1705179033083,-150.0,0.00022751,2]
[311521891,1705179033092,-200.32958646,0.00022755,2]
[311521892,1705179033104,-99.67041354,0.00022755,2]
[311521893,1705179033114,-150.0,0.00022757,2]
[311521894,1705179033123,-150.0,0.00022759,2]
[311521895,1705179033132,-150.0,0.00022764,2]
[311521896,1705179033141,-150.0,0.00022764,2]
[311521897,1705179033150,-150.0,0.00022765,2]
[311521898,1705179033159,-150.0,0.00022765,2]
[311521899,1705179033168,-150.0,0.00022768,2]
[311521900,1705179033177,-29.22271654,0.00022769,2]
[311521901,1705179033188,-120.77728346,0.00022769,2]
[311521902,1705179033197,-150.0,0.00022772,2]
[311521903,1705179033206,-150.0,0.00022774,2]
[311521904,1705179033214,-150.0,0.00022777,2]
[311521905,1705179033223,-150.0,0.00022779,2]
[311521906,1705179033232,-1426.37682546,0.00022779,2]
[311521907,1705179033244,-73.62317454,0.00022779,2]
[311521908,1705179033253,-150.0,0.00022781,2]
[311521909,1705179033264,-150.0,0.00022783,2]
[311521910,1705179033273,-150.0,0.00022789,2]
[311521911,1705179033282,-1092.54297958,0.00022792,2]
[311521912,1705179033304,-407.45702042,0.00022792,2]
[311521913,1705179033313,-150.0,0.00022793,2]
[311521914,1705179033323,-150.0,0.00022795,2]
[311521915,1705179033331,-19.29310437,0.00022796,2]
[311521916,1705179033342,-130.70689563,0.00022796,2]
[311521917,1705179033351,-150.0,0.00022796,2]
[311521918,1705179033360,-150.0,0.00022799,2]
[311521919,1705179033370,-72.44965072,0.00022802,2]
[311521920,1705179033395,-77.55034928,0.00022802,2]
[311521921,1705179033406,-150.0,0.00022802,2]
[311521922,1705179033415,-63.54777701,0.00022803,2]
[311521923,1705179033426,-86.45222299,0.00022803,2]
[311521924,1705179033435,-150.0,0.00022805,2]
[311521925,1705179033445,-300.0,0.00022807,2]
[311521926,1705179033454,-150.0,0.00022818,2]
[311521927,1705179033463,-242.92012067,0.00022818,2]
[311521928,1705179033472,-150.0,0.0002282,2]
[311521929,1705179033481,-150.0,0.0002282,2]
[311521930,1705179033490,-150.0,0.00022822,2]
[311521931,1705179033500,-150.0,0.00022822,2]
[311521932,1705179033510,-521.14,0.00022824,2]
[311521933,1705179033519,-268.93035776,0.00022825,2]
[311521934,1705179033530,-655.60712406,0.00022825,2]
[311521935,1705179033545,-395.76320725,0.00022825,2]
[311521936,1705179035095,-190.354759,0.00022825,2]
[311521937,1705179035105,-150.0,0.00022825,2]
[311521938,1705179035116,-121.07941162,0.00022826,2]
[311521939,1705179035139,-28.92058838,0.00022826,2]
[311521940,1705179035150,-150.0,0.00022839,2]
[311521941,1705179035160,-1500.0,0.00022842,2]
[311521942,1705179035170,-150.0,0.00022842,2]
[311521943,1705179035180,-150.0,0.00022842,2]
[311521944,1705179035191,-150.0,0.00022844,2]
[311521945,1705179035201,-177.8897533,0.00022845,2]
[311521946,1705179035210,-150.0,0.00022846,2]
[311521947,1705179035220,-150.0,0.00022846,2]
[311521948,1705179035230,-1500.0,0.00022848,2]
[311521949,1705179035240,-150.0,0.0002285,2]
[311521950,1705179035253,-150.1,0.00022851,3]
[311521951,1705179035263,-1500.0,0.00022851,2]
[311521952,1705179035274,-1331.50947926,0.00022853,2]
[311521953,1705179035292,-168.49052074,0.00022853,2]
[311521954,1705179035302,-150.0,0.00022853,2]
[311521955,1705179035314,-35.62925695,0.00022854,2]
[311521956,1705179035326,-114.37074305,0.00022854,2]
[311521957,1705179035336,-150.0,0.00022857,2]
[311521958,1705179035347,-150.0,0.00022863,2]
[311521959,1705179035358,-150.0,0.00022864,2]
[311521960,1705179035368,-54.7338314,0.00022864,2]
[311521961,1705179035381,-95.2661686,0.00022864,2]
[311521962,1705179035391,-150.0,0.00022867,2]
[311521963,1705179035401,-150.0,0.0002287,2]
[311521964,1705179035411,-150.0,0.00022874,2]
[311521965,1705179035421,-150.0,0.00022876,2]
[311521966,1705179035431,-150.0,0.00022878,2]
[311521967,1705179035442,-1000.0,0.0002288,2]
[311521968,1705179035452,-150.0,0.0002288,2]
[311521969,1705179035462,-150.0,0.00022881,2]
[311521970,1705179035473,-150.0,0.00022888,2]
[311521971,1705179035484,-150.0,0.00022888,2]
[311521972,1705179035494,-1500.0,0.00022891,2]
[311521973,1705179035505,-1500.0,0.00022893,2]
[311521974,1705179035515,-150.0,0.00022895,2]
[311521975,1705179035525,-730.9,0.00022896,2]
[311521976,1705179035534,-723.83,0.00022896,2]
[311521977,1705179035545,-737.37,0.00022897,2]
[311521978,1705179035554,-150.0,0.00022898,2]
[311521979,1705179035563,-12195.80852853,0.000229,2]
[311521980,1705179035572,-150.0,0.00022901,2]
[311521981,1705179035582,-150.0,0.00022901,2]
[311521982,1705179035591,-300.0,0.00022901,2]
[311521983,1705179035600,-150.0,0.00022902,2]
[311521984,1705179035609,-1500.0,0.00022905,2]
[311521985,1705179035618,-150.0,0.00022906,2]
[311521986,1705179035627,-300.0,0.00022906,2]
[311521987,1705179035636,-150.0,0.00022907,2]
[311521988,1705179035645,-150.0,0.00022908,2]
[311521989,1705179035654,-150.0,0.0002291,2]
[311521990,1705179035663,-150.0,0.0002291,2]
[311521991,1705179035672,-150.0,0.00022913,2]
[311521992,1705179035682,-150.0,0.00022914,2]
[311521993,1705179035691,-150.0,0.00022914,2]
[311521994,1705179035700,-300.0,0.00022916,2]
[311521995,1705179035709,-150.0,0.00022916,2]
[311521996,1705179035719,-150.0,0.0002292,2]
[311521997,1705179035728,-150.0,0.00022922,2]
[311521998,1705179035737,-7513.35583929,0.00022924,2]
[311521999,1705179035747,-150.0,0.00022924,2]
[311522000,1705179035756,-150.0,0.00022926,2]
[311522001,1705179035766,-35659.1389,0.00022928,2]
[311522002,1705179035775,-150.0,0.00022931,2]
[311522003,1705179035786,-150.0,0.00022932,2]
[311522004,1705179035797,-150.0,0.00022933,2]
[311522005,1705179035806,-150.0,0.00022934,2]
[311522006,1705179035815,-150.0,0.00022936,2]
[311522007,1705179035825,-150.0,0.00022937,2]
[311522008,1705179035834,-1500.0,0.0002294,2]
[311522009,1705179035843,-150.0,0.00022941,2]
[311522010,1705179035853,-150.0,0.00022942,2]
[311522011,1705179035863,-150.0,0.00022944,2]
[311522012,1705179035872,-1500.0,0.00022945,2]
[311522013,1705179035881,-150.0,0.00022948,2]
[311522014,1705179035891,-150.0,0.00022949,2]
[311522015,1705179035900,-300.0,0.0002295,2]
[311522016,1705179035910,-150.0,0.00022952,2]
[311522017,1705179035919,-150.0,0.00022954,2]
[311522018,1705179035928,-150.0,0.00022955,2]
[311522019,1705179035938,-150.0,0.00022958,2]
[311522020,1705179035947,-150.0,0.00022964,2]
[311522021,1705179035956,-150.0,0.00022964,2]
[311522022,1705179035966,-150.0,0.00022964,2]
[311522023,1705179035975,-150.0,0.00022966,2]
[311522024,1705179035985,-150.0,0.00022968,2]
[311522025,1705179035994,-1500.0,0.00022969,2]
[311522026,1705179036003,-150.0,0.00022969,2]
[311522027,1705179036013,-1500.0,0.0002297,2]
[311522028,1705179036022,-150.0,0.00022971,2]
[311522029,1705179036031,-1500.0,0.00022971,2]
[311522030,1705179036040,-150.0,0.00022971,2]
[311522031,1705179036049,-150.0,0.00022972,2]
[311522032,1705179036058,-1500.0,0.00022973,2]
[311522033,1705179036068,-150.0,0.00022976,2]
[311522034,1705179036078,-150.0,0.00022977,2]
[311522035,1705179036087,-1500.0,0.00022977,2]
[311522036,1705179036097,-150.0,0.0002298,2]
[311522037,1705179036107,-150.0,0.00022983,2]
[311522038,1705179036116,-1500.0,0.00022989,2]
[311522039,1705179036125,-150.0,0.00022991,2]
[311522040,1705179036135,-150.0,0.00022991,2]
[311522041,1705179036144,-1500.0,0.00022992,2]
[311522042,1705179036153,-150.0,0.00022993,2]
[311522043,1705179036163,-167.06780332,0.00022997,3]
[311522044,1705179036172,-363.56577485,0.00022997,2]
[311522045,1705179036181,-12205.95814213,0.00022998,2]
[311522046,1705179036191,-242.04927241,0.00022998,2]
[311522047,1705179036200,-150.0,0.00022998,2]
[311522048,1705179036210,-731.73,0.00022999,2]
[311522049,1705179036219,-403.69410205,0.00022999,2]
[311522050,1705179036228,-214.68433888,0.00022999,2]
[311522051,1705179036237,-5084.9977346,0.00022999,2]
[311522052,1705179036251,-387.61028032,0.00022999,2]
[311522053,1705179036271,-643.205,0.00022999,2]
[311522054,1705179038233,-499.99,0.00022777,2]
[311522055,1705179038242,-11769.84491588,0.00022999,2]
[311522056,1705179038255,-18969.95237756,0.00022999,2]
[311522057,1705179038264,-155.0,0.00022999,2]
[311522058,1705179038274,-400.0,0.00022999,2]
[311522059,1705179038283,-417.33036051,0.00022999,2]
[311522060,1705179038292,-24312.16676934,0.00022999,2]
[311522061,1705179038301,-1035.7344448,0.00022999,2]
[311522062,1705179038310,-214.7697369,0.00022999,2]
[311522063,1705179038319,-2133.7271505,0.00022999,2]
[311522064,1705179038328,-1737.59447745,0.00022999,2]
[311522065,1705179038337,-729.93,0.00023,2]
[311522066,1705179038346,-6731.30521721,0.00023,2]
[311522067,1705179038366,-462675.7382336,0.00023,2]
[311522068,1705179038395,-4902.54171779,0.00023,2]
[311522075,1705179040641,-757.91521654,0.00023,2]
[311522076,1705179040750,-7726.4306197,0.00023,2]
[311522090,1705179043298,-410460.57728896,0.00023,2]
[311522091,1705179043308,-296.31084772,0.00023,3]
[311522092,1705179043318,-104512.97838358,0.00023,2]
[311522105,1705179046224,-456.002,0.00023,2]
[311522107,1705179046236,-2489.74627972,0.00023,2]
[311522114,1705179046295,-436.34852955,0.00023,2]
[311522138,1705179092945,319.64587226,0.00022,2]
[311522139,1705179097672,277.83,0.00021334,2]
[311522140,1705179113968,2521.02199253,6.94e-05,2]
[311522141,1705179142368,559.19420109,0.00020465,2]
[311522142,1705179143165,1333.6044,0.00022,2]
[311522143,1705179171555,881.85563742,0.00021844,2]
[311522144,1705179174774,391.84940991,0.00018395,2]
[311522145,1705179190342,205.0,9.8e-05,2]
[311522146,1705179193729,4911.88295832,0.0001305,2]
[311522147,1705179194146,238.5366828,0.000101,2]
[311522148,1705179218998,1483.87699142,0.0002,2]
[311522150,1705179263379,34260.16051162,0.00022,2]
[311522151,1705179355523,3318.92798368,0.00021844,7]
[311522162,1705179420673,-220.37133132,0.0002211,2]
[311522163,1705179420693,-451.65,0.00022336,2]
[311522164,1705179420712,-8444.41950086,0.000225,2]
[311522165,1705179420732,-1086.99487981,0.0002254,2]
[311522166,1705179420752,-800.0,0.00022816,2]
[311522167,1705179420772,-162.5,0.0002282,2]
[311522168,1705179420792,-295.36146745,0.00022899,2]
[311522169,1705179420819,-274.21522851,0.00022983,2]
[311522170,1705179420838,-173.79471318,0.00022994,2]
[311522171,1705179420857,-514.40879808,0.00022995,2]
[311522172,1705179420879,-9943.76235234,0.00022995,2]
[311522173,1705179420900,-153.0,0.00022996,2]
[311522174,1705179420920,-153.0,0.00022996,2]
[311522175,1705179420940,-117326.52172845,0.00022996,2]
[311522176,1705179432032,-150.0,0.00022539,2]
[311522177,1705179432054,-9850.0,0.00022996,2]
[311522178,1705179441520,-10000.0,0.00022996,2]
[311522180,1705179466166,-150.0,0.00022793,2]
[311522181,1705179466186,-1545.8276,0.00022896,2]
[311522182,1705179466207,-304.1724,0.00022996,2]
[311522187,1705179523520,2723.97687708,0.00021844,7]
[311522188,1705179547315,263.93,0.00021251,2]
[311522198,1705179789904,151.0,0.00023,7]
[311522201,1705179880332,421.54,0.00021967,2]
[311522202,1705179897390,1250.0,0.00022,3]
[311522206,1705179920228,151.0,0.00023,7]
[311522207,1705179920505,151.0,0.00023,7]
[311522208,1705179920770,151.0,0.00023,7]
[311522209,1705179964553,338.43,0.00021962,2]
[311522213,1705180069528,1480.09418827,0.00031,120]
[311522214,1705180070877,352.1,0.00022,2]
[311522217,1705180109128,262.12,0.00019997,2]
[311522225,1705180186512,558.73823106,0.0002029,2]
[311522243,1705180238615,-194.40732257,0.00022202,2]
[311522244,1705180238626,-262.12,0.00022261,2]
[311522245,1705180238635,-104.74257743,0.00022301,2]
[311522246,1705180238647,-333.4011,0.00022301,2]
[311522247,1705180238723,-825.57805478,0.00022301,2]
[311522248,1705180238742,-1429.80016735,0.00022301,2]
[311522250,1705180238754,-308.76206304,0.00022301,2]
[311522252,1705180238763,-893.32311416,0.00022302,2]
[311522269,1705180241510,-14.49902421,0.00022302,2]
[311522270,1705180241520,-194.40732256,0.00022451,2]
[311522271,1705180241535,-181.33652768,0.00022458,2]
[311522277,1705180244651,-24.66347232,0.00022458,2]
[311522278,1705180244662,-194.40732256,0.000227,2]
[311522279,1705180244671,-279.3351,0.000227,2]
[311522280,1705180244681,-2642.323,0.00022709,2]
[311522281,1705180244690,-150.0,0.0002273,2]
[311522282,1705180244699,-308.39972625,0.00022762,2]
[311522283,1705180244709,-481.35993134,0.00022762,2]
[311522284,1705180244718,-150.0,0.00022779,2]
[311522285,1705180244727,-435.21804576,0.00022798,2]
[311522286,1705180244737,-150.0,0.00022799,2]
[311522287,1705180244746,-40960.51972169,0.000228,2]
[311522288,1705180244758,-2276.19867508,0.000228,2]
[311522289,1705180244776,-2970.5442568,0.000228,2]
[311522292,1705180246321,-2013.22982693,0.000228,2]
[311522293,1705180246334,-11973.65554826,0.000228,2]
[311522294,1705180246387,-349.52660475,0.000228,2]
[311522295,1705180246490,-71826.0721722,0.000228,2]
[311522298,1705180246842,-14295.66213299,0.000228,2]
[311522299,1705180246854,-2043.91007671,0.000228,2]
[311522300,1705180246864,-6620.68,0.000228,2]
[311522301,1705180246873,-3741.64,0.000228,2]
[311522302,1705180246882,-204.4343378,0.00022801,2]
[311522303,1705180246891,-499.99,0.00022801,2]
[311522304,1705180246900,-150.0,0.0002281,2]
[311522305,1705180246909,-150.0,0.00022813,2]
[311522306,1705180246918,-500.0,0.00022845,2]
[311522307,1705180246927,-150.0,0.00022877,2]
[311522308,1705180246937,-150.0,0.00022894,2]
[311522309,1705180246946,-150.0,0.00022895,2]
[311522310,1705180246955,-1952.3896,0.00022895,2]
[311522311,1705180246963,-85.97223123,0.00022895,2]
[311522313,1705180265120,1273.89360077,0.0002029,5]
[311522314,1705180291530,-203.0,0.00022458,2]
[311522315,1705180291552,-3000.79338492,0.00022894,2]
[311522316,1705180291576,-455.58716877,0.00022895,2]
[311522317,1705180291596,-663.05,0.00022896,2]
[311522318,1705180291617,-500.0,0.00022896,2]
[311522319,1705180291637,-153.0,0.00022899,2]
[311522320,1705180291658,-258.44128401,0.000229,2]
[311522321,1705180291679,-11179.49115118,0.000229,2]
[311522322,1705180291707,-150.0,0.00022909,2]
[311522323,1705180291729,-150.0,0.00022924,2]
[311522324,1705180291752,-150.0,0.00022924,2]
[311522325,1705180291774,-150.0,0.00022927,2]
[311522326,1705180291797,-421.54,0.00022945,2]
[311522327,1705180291820,-150.0,0.0002296,2]
[311522328,1705180291843,-158.51725912,0.00022992,2]
[311522329,1705180291864,-1913.37819897,0.00022992,2]
[311522330,1705180291884,-155.0,0.00022992,2]
[311522331,1705180291904,-155.0,0.00022992,2]
[311522332,1705180291923,-6432.2832188,0.00022992,2]
[311522333,1705180291944,-1197.98121798,0.00022992,2]
[311522334,1705180291963,-473.97561772,0.00022992,2]
[311522335,1705180291984,-1023.00930679,0.00022992,2]
[311522336,1705180292005,-6518.43353012,0.00022992,2]
[311522337,1705180292025,-19100.27553742,0.00022992,2]
[311522338,1705180292046,-215.35384188,0.00022993,2]
[311522339,1705180292068,-24322.18719466,0.00022993,2]
[311522340,1705180292090,-3141.15835728,0.00022994,2]
[311522341,1705180292110,-33719.15430606,0.00022994,2]
[311522342,1705180292130,-7457.22634231,0.00022994,2]
[311522343,1705180292151,-1707.63370673,0.00022994,2]
[311522344,1705180292170,-318.31330327,0.00022994,2]
[311522345,1705180292190,-2137.45783782,0.00022994,2]
[311522346,1705180292211,-2605.00000774,0.00022995,2]
[311522347,1705180292231,-2265.8208508,0.00022995,2]
[311522348,1705180292252,-2617.16595295,0.00022995,2]
[311522349,1705180292272,-34780.7714227,0.00022995,2]
[311522351,1705180368081,489.61,0.00021916,2]
[311522352,1705180392614,200.0,0.00021905,2]
[311522353,1705180400188,151.0,0.00023,7]
[311522354,1705180400728,10000.0,0.00021918,2]
[311522355,1705180434115,151.40114,0.00022,3]
[311522356,1705180436227,1220.67,0.00021903,2]
[311522357,1705180436551,151.40114,0.00022,3]
[311522358,1705180439339,718.56,0.00021903,2]
[311522359,1705180439955,151.40114,0.00022,3]
[311522360,1705180443913,205.0,0.00021458,2]
[311522361,1705180444021,151.40114,0.00022,3]
[311522362,1705180444755,151.40114,0.00022,3]
[311522363,1705180445526,151.40114,0.00022,3]
[311522364,1705180446580,151.40114,0.00022,3]
[311522365,1705180447367,151.40114,0.00022,3]
[311522366,1705180448891,151.40114,0.00022,3]
[311522367,1705180449788,151.40114,0.00022,3]
[311522368,1705180450475,151.40114,0.00022,3]
[311522369,1705180451164,151.40114,0.00022,3]
[311522370,1705180451941,151.40114,0.00022,3]
[311522371,1705180452634,151.40114,0.00022,3]
[311522372,1705180453368,151.40114,0.00022,3]
[311522373,1705180454061,151.40114,0.00022,3]
[311522374,1705180454791,151.40114,0.00022,3]
[311522375,1705180455533,151.40114,0.00022,3]
[311522376,1705180456263,151.40114,0.00022,3]
[311522377,1705180456965,151.40114,0.00022,3]
[311522378,1705180457836,151.40114,0.00022,3]
[311522379,1705180458505,151.40114,0.00022,3]
[311522380,1705180459243,151.40114,0.00022,3]
[311522381,1705180459992,151.40114,0.00022,3]
[311522382,1705180460674,151.40114,0.00022,3]
[311522383,1705180461385,151.40114,0.00022,3]